Cogmind - Beta 13 @@@ ROGUE MODE // 2024.04.22 @ 21:43:14 Player: pJotoro Result: Destroyed by S-10 Pest with Light Assault Rifle Performance ------------- Evolutions (1) 500 Regions Visited (2) 400 Robots Destroyed (17) 85 Value Destroyed (450) 450 Prototype IDs (0) 0 Alien Tech Used (0) 0 Bonus (0) 0 TOTAL SCORE: 1435 Bonus ------- None Cogmind --------- Core Integrity 0/400 Matter 289/300 Energy 103/265 System Corruption 0% Temperature Cool (0) Movement Core (200) Ox3 Location -9/Materials Parts ------- > --- POWER (1) -------- Improved Ion Engine > --- PROPULSION (4) --- (None) > --- UTILITY (2) ------ Visual Processing Unit Core Shielding > --- WEAPON (2) ------- Light Assault Rifle Katana > --- INVENTORY (5) ---- Improved Ion Engine Heat Sink Heat Sink Light Armor Plating Peak State ------------ > --- POWER ------------ Improved Ion Engine > --- PROPULSION ------- Improved Hover Unit Improved Hover Unit > --- UTILITY ---------- Visual Processing Unit Core Shielding > --- WEAPON ----------- Light Assault Rifle Katana > --- INVENTORY -------- Ion Engine Improved Ion Engine Heat Sink Heat Sink Light Armor Plating [Rating: 13] Favorites ----------- Power Light Ion Engine Engine Light Ion Engine Propulsion Light Treads Treads Light Treads Leg Aluminum Leg Hover Unit Improved Hover Unit Utility Visual Processing Unit Device Seismic Detector Storage Small Storage Unit Processor Visual Processing Unit Protection Weapon Shielding Weapon Small Laser Energy Gun Small Laser Ballistic Gun Light Assault Rifle Slashing Weapon Katana Build | -11 -10 -9 ------- Run | Yrd Mat Mat Slots Evolved 2 | . . 2 Power . | . . . Propulsion 2 | . . 2 Utility . | . . . Weapon . | . . . Parts Attached 35 | 7 7 21 Power 8 | 2 1 5 Engine 8 | 2 1 5 Core . | . . . Reactor . | . . . Propulsion 10 | 2 2 6 Treads 6 | 2 . 4 Leg 2 | . 2 . Wheel . | . . . Hover 2 | . . 2 Flight . | . . . Utility 9 | 1 4 4 Device 2 | . 1 1 Storage 2 | 1 1 . Processor 1 | . . 1 Hackware . | . . . Protection 4 | . 2 2 Artifact . | . . . Weapon 8 | 2 . 6 Energy Gun 4 | 2 . 2 Energy Cannon . | . . . Ballistic Gun 3 | . . 3 Ballistic Cannon . | . . . Launcher . | . . . Special Weapon . | . . . Impact Weapon . | . . . Slashing Weapon 1 | . . 1 Piercing Weapon . | . . . Special Melee Weapon . | . . . Unidentified Prototypes . | . . . Parts Lost 9 | . 1 8 Power 2 | . . 2 Propulsion 3 | . . 3 Utility 2 | . 1 1 Weapon 2 | . . 2 Highest Loss Streak 4 | . 1 4 To Critical Strikes . | . . . Average Slot Usage (%) 75 | . 100 64 Engine 11 | . 14 11 Treads 7 | . 20 1 Leg 6 | . 7 5 Hover 4 | . . 7 Device 4 | . 10 2 Processor 7 | . . 11 Protection 11 | . 16 8 Energy Gun 14 | . 28 7 Ballistic Gun 3 | . . 5 Slashing Weapon 2 | . . 4 Naked Turns . | . . . Heaviest Build 13 | 11 12 13 Greatest Support 60 | 40 40 60 Greatest Overweight (x) 3 | . . 3 Average Overweight (x) . | . . . Largest Inventory Capacity 8 | 8 8 5 Average Capacity 5 | 7 5 5 Most Carried 8 | 8 8 5 Average Carried 4 | 4 4 4 Final Capacity 8 | 8 5 5 Final Carried 8 | 8 4 4 Class Distribution -------------------- 100% | Mutant Dominant Class ---------------- Mutant | -10/Materials Mutant | -9/Materials Resources | -11 -10 -9 ----------- Run | Yrd Mat Mat Matter Collected 541 | 270 67 204 Remotely . | . . . Salvage Created 738 | 119 103 516 Parts 39 | 2 4 33 Haulers Intercepted . | . . . Recyclers Shooed 2 | . . 2 Parts Field Recycled . | . . . Retrieved Matter . | . . . Parts Self-Destructed . | . . . Prevented . | . . . Kills | -11 -10 -9 ------- Run | Yrd Mat Mat Combat Hostiles Destroyed 11 | . 2 9 Melee 4 | . . 4 Guns 7 | . 2 5 Classes Destroyed 7 | 2 2 3 Tunneler 1 | 1 . . Recycler 2 | 1 . 1 Watcher 3 | . 1 2 Swarmer 2 | . . 2 Grunt 4 | . 2 2 Duelist 1 | . . 1 Sentry 4 | . . 4 Best Kill Streak 3 | 2 2 3 Combat Bots Only 2 | . 1 2 Max Kills in Single Turn 1 | 1 1 1 Gunslinging . | . . . Exploded . | . . . Melee 1 | . . 1 Uniques/NPCs Destroyed . | . . . Combat | -11 -10 -9 -------- Run | Yrd Mat Mat Hostile Shots Fired 134 | . 23 111 Missed 29 | . 9 20 Damage Taken 1350 | . 255 1095 Core 531 | . 126 405 Absorbed by Shields . | . . . Redirected to Shielding 59 | . 7 52 Core Remaining (%) 74 | 100 49 . Volleys Fired 80 | 7 15 58 Largest 2 | 2 2 2 Hottest 80 | 80 80 80 Shots Fired 109 | 14 29 66 Gun 109 | 14 29 66 Cannon . | . . . Launcher . | . . . Special . | . . . Kinetic 32 | . . 32 Thermal 49 | 7 15 27 Explosive . | . . . Electromagnetic 28 | 7 14 7 Robot Hit Streak 13 | 4 11 13 Robot Miss Streak 11 | 1 2 11 Penetration Max . | . . . Secondary Targets . | . . . Shots Hit Robots 76 | 9 19 48 Core Hits 28 | 3 5 20 Critical Kills . | . . . Critical Parts Destroyed . | . . . Critical Strikes 3 | 1 . 2 Corrupt 2 | 1 . 1 Sever 1 | . . 1 Melee Attacks 16 | . . 16 Impact . | . . . Slashing 16 | . . 16 Piercing . | . . . Sneak Attacks . | . . . Combat Hostiles . | . . . Follow-up Attacks . | . . . Damage Inflicted 1104 | 107 253 744 Guns 730 | 107 253 370 Cannons . | . . . Explosions . | . . . Melee 374 | . . 374 Ramming . | . . . Kinetic 146 | . . 146 Thermal 364 | 68 109 187 Explosive . | . . . Electromagnetic 220 | 39 144 37 Impact . | . . . Slashing 374 | . . 374 Piercing . | . . . Highest Corruption 1 | . 1 . Average Corruption 1 | . 1 . Corruption Purged . | . . . Corruption Blocked . | . . . Effects 1 | . 1 . Weapon Failures 1 | . 1 . Overload Shots . | . . . Overflow Damage 16 | . . 16 Projectiles . | . . . Explosions . | . . . Melee 16 | . . 16 Knockbacks . | . . . Impact . | . . . Kinetic . | . . . Secondary . | . . . Self-Inflicted Damage . | . . . Shots . | . . . Rammed . | . . . Targets Rammed . | . . . Kicked . | . . . Crushed . | . . . Highest Temperature 135 | 72 135 100 Average Temperature 37 | 34 54 19 Received Heat Transfer 303 | . 78 225 Siege Activations . | . . . Robots Corrupted . | . . . Combat Hostiles . | . . . Parts Fried . | . . . Impact Corruptions . | . . . Robots Melted . | . . . Combat Hostiles . | . . . Parts Melted . | . . . Heat Transferred 836 | 150 250 436 Parts Sabotaged . | . . . Parts Stolen . | . . . Parts Stripped . | . . . Power Chain Reactions . | . . . Alert | -11 -10 -9 ------- Run | Yrd Mat Mat Peak Influence 251 | 10 77 251 Initial 32 | . 6 32 Average 61 | 6 35 104 Maximum Alert Level 1 | . . 1 Low Security (%) 94 | 100 100 89 Level 1 5 | . . 10 Level 2 . | . . . Level 3 . | . . . Level 4 . | . . . Level 5 . | . . . High Security . | . . . Max Security . | . . . Squads Dispatched 1 | . 1 . Investigation 1 | . 1 . Extermination . | . . . Reinforcement . | . . . Assault . | . . . Garrison . | . . . Intercept . | . . . Searches Triggered . | . . . Construction Impeded . | . . . Haulers Reinforced . | . . . Active Scanning Responses . | . . . Cargo Convoy Interrupts . | . . . Stealth | -11 -10 -9 --------- Run | Yrd Mat Mat Distress Signals 2 | . 1 1 Communications Jammed . | . . . Distress Signals . | . . . Times Spotted 22 | . 10 12 Peak Tracking Total 5 | . 5 3 Tactical Retreats . | . . . Traps | -11 -10 -9 ------- Run | Yrd Mat Mat Traps Triggered 2 | . 1 1 Indirectly . | . . . Trap Hack Attempts . | . . . Triggered . | . . . Disarmed . | . . . Reprogrammed . | . . . Reused . | . . . Traps Extracted . | . . . Installed . | . . . Triggered . | . . . Machines | -11 -10 -9 ---------- Run | Yrd Mat Mat Machines Disabled . | . . . Max in Single Turn . | . . . Machines Repaired . | . . . Machines Dismantled . | . . . Machines Sabotaged . | . . . Overloaded Fab Kills . | . . . Hacking | -11 -10 -9 --------- Run | Yrd Mat Mat Machines Accessed 3 | . 2 1 Terminals 3 | . 2 1 Fabricators . | . . . Repair Stations . | . . . Recycling Units . | . . . Scanalyzers . | . . . Garrison Access . | . . . Total Hacks 3 | . 2 1 Successful 2 | . 2 . Failed 1 | . . 1 Catastrophic . | . . . Database Lockouts . | . . . Manual . | . . . Terminals 3 | . 2 1 Fabricators . | . . . Repair Stations . | . . . Recycling Units . | . . . Scanalyzers . | . . . Garrison Access . | . . . Terminal Hacks 2 | . 2 . Locate Traps 1 | . 1 . Zone Layout 1 | . 1 . Fabricator Hacks . | . . . Repair Station Hacks . | . . . Recycling Unit Hacks . | . . . Scanalyzer . | . . . Garrison Access Hacks . | . . . Unauthorized Hacks . | . . . Terminals . | . . . Fabricators . | . . . Repair Stations . | . . . Recycling Units . | . . . Scanalyzers . | . . . Garrison Access . | . . . Data Cores Recovered . | . . . Used . | . . . Hacking Detections . | . . . Full Trace Events . | . . . Feedback Events . | . . . Feedback Blocked . | . . . Robot Schematics Acquired . | . . . Robots Built . | . . . Authchips . | . . . Time . | . . . Total Robot Build Rating . | . . . Part Schematics Acquired . | . . . Parts Built . | . . . Authchips . | . . . Time . | . . . Total Part Build Rating . | . . . Parts Repaired . | . . . Time . | . . . Parts Recycled . | . . . Recycled Matter . | . . . Retrieved Matter . | . . . Retrieved Components . | . . . Parts Scanalyzed . | . . . Part Schematics Acquired . | . . . Parts Damaged . | . . . Bothacking | -11 -10 -9 ------------ Run | Yrd Mat Mat Used RIF Installer . | . . . Robots Hacked . | . . . Non-combat . | . . . Combat . | . . . Robot Hacks Applied . | . . . Relay Couplers Released . | . . . Fabnet Peak Effective % . | . . . Robots Rewired . | . . . Allies Hacked . | . . . Hacks Repelled . | . . . Allies | -11 -10 -9 -------- Run | Yrd Mat Mat Total Allies . | . . . Largest Group . | . . . Highest-Rated Group . | . . . Highest-Rated Ally . | . . . Total Orders . | . . . Ally Attacks . | . . . Total Damage . | . . . Kills . | . . . Allies Corrupted . | . . . Allies Melted . | . . . Intel | -11 -10 -9 ------- Run | Yrd Mat Mat Robot Analysis Total . | . . . Derelict Logs Recovered . | . . . Drone Launches . | . . . Drone Recoveries . | . . . Exploration | -11 -10 -9 ------------- Run | Yrd Mat Mat Turns Passed 1027 | 294 225 508 Spaces Moved 524 | 168 110 246 Core 29 | 15 . 14 Treads 249 | 153 76 20 Legs 118 | . 34 84 Wheels . | . . . Hover 128 | . . 128 Flight . | . . . Fastest Speed 50 | 50 120 56 Average Speed 128 | 150 147 104 Slowest Speed 200 | 160 160 200 Overloaded Moves . | . . . Propulsion Burnouts . | . . . Robots Hopped . | . . . Cave-ins Triggered . | . . . Exploration Rate (%) 18 | 10 25 20 Regions Visited 2 Branch Regions . Pre-discovered Areas . | . . . Known Exits Taken . | . . . Unknown Exits Taken 2 | 1 1 . Scrap Searched . | . . . Spaces Dug . | . . . Terrain Destroyed . | . . . Melee . | . . . Projectile . | . . . AOE . | . . . Terrain Rammed . | . . . Walls Destroyed . | . . . Machines Disabled . | . . . Actions | -11 -10 -9 --------- Run | Yrd Mat Mat Total 751 | 195 143 413 Wait 54 | . 2 52 Move 522 | 167 109 246 Hop . | . . . Pick Up 27 | 14 5 8 Fast Attach 10 | . . 10 Attach 15 | 6 2 7 Detach . | . . . Swap 10 | 1 5 4 Drop 17 | . 5 12 Fire 80 | 7 15 58 Melee 16 | . . 16 Ram . | . . . Kick . | . . . Crush . | . . . Escape Stasis . | . . . Rewire . | . . . Trap . | . . . Miscellaneous . | . . . Route ------- -11/Scrapyard -10/Materials -9/Materials History --------- Turn | Location | Event 22 | -11/Scrapyard | Discovered new exit (range 15) 295 | -11/Scrapyard | Entered Materials 340 | -10/Materials | Build established: Mutant 464 | -10/Materials | Core integrity fell below 50% 509 | -10/Materials | Discovered new exit (range 10) 520 | -10/Materials | Entered another Materials area 520 | -9/Materials | Evolved 2 slots: Propulsion x2 743 | -9/Materials | Lost 4 parts (1p1n1u1w) 830 | -9/Materials | Core integrity fell below 50% 990 | -9/Materials | Core integrity fell below 20% 1028 | -9/Materials | Destroyed by S-10 Pest with Light Assault Rifle Last Messages --------------- Acquired Lgt. Treads. K-01 Serf collects debris. Dropped Lgt. Treads. Dropped Ion Engine. Acquired Imp. Ion Engine. K-01 Serf collects debris. U-05 Engineer lays Concrete. U-05 Engineer builds a Wall. K-01 Serf collects debris. S-10 Pest destroyed. K-01 Serf collects debris. Hvy. EM Pulse Gun destroyed. K-01 Serf collects debris. Destroyed Flight Unit. Imp. Hover Unit destroyed. S-10 Pest destroyed. Acquired Lgt. Assault Rifle. Acquired 10 matter. Acquired 1 matter. Imp. Ion Engine destroyed. Map ----- +----------------------------------------------------+ | ?????????????????????????????????????? | | ?????????????????????????????????????? | | ?????????????????????????????????????? | | ?????????????????????????????????????? | | ?????????????????????????????????????? | | ?????????????????????????????????????? | | ?????????????????????????????????????? | | ?????????????????????????????????????? | | ?????????????????????????????????????? | | ?????????????????????????????????????? | | ?????????????????????????????????????? | | ??????????????????? #???????????????? | | ?????????????????? #??????????????? | | ?????????????????? ???????????????? | | ?????????????????? ???????????????? | | ?????????????????? ???????????????? | | ??????????????????# #???????????????? | | ??????????????????# #???????????????? | | ??????????######### #???????????????? | | ??????????? #???????????????? | | ????????????? #???????????????? | | ??????????????# #???????????????? | | ??????????????# =#???????????????? | | ??????####????# %######??????????? | | # #????# #?????#####? | | + """ #????# s @#?????# ## | | # """ ! ###### "T" #?????# # | | # """ # ## #?????# # | | # # ##] ####### # | | # """ # ## [ = * # | | # """ # ## %%!####### # | | ? """ # ## ######+######## # | | ??? ?? ?#! #?# ![!= + ###### | | #####+###? ?# %[#?#! """"" ####????? | | # ###+###% =#?# """"" #???????? | | # =*[#?# """"" #???????? | | " / #?# """"" #???????? | | " # #?# """"" #???????? | | " # ###+### #?# """"" #???????? | | " ## ### # #?#! """"" #???????? | | " ## #?# # #?# #???????? | | ## #?# # #?##########???????? | | #### #?# # #??????????????????? | | #??# #?# !# #??????????????????? | | ####% #?# # #??????????????????? | | #?# # ??????????????????? | | #?# # #??????????????????? | | #?# # #??????????????????? | | #### #?###### #??????????????????? | | ???# #??????? ??????????????????? | +----------------------------------------------------+ Best States ------------- Heat Dissipation 28 Energy Generation 12 Energy Capacity 265 Matter Stores 300 Matter Capacity 450 Sight Range 18 Robot Scan Range 14 Terrain Scan Density 10 Core Shielding 20 Weapon Shielding 33 Evasion (%) 55 Recoil Reduction 3 Item Schematics ----------------- None Robot Schematics ------------------ None Fabricated ------------ Nothing Alien Tech Used ----------------- None Achievements -------------- None Challenges ------------ None Game ------ Seed SwarmAdvancedReconfigurator Manual? 0 Play Time 00:17:42 Cumulative 7.3 hours Start 2024.04.21 @ 21:00:45 End 2024.04.22 @ 21:43:14 Sessions 2 Manual Loads 0 Difficulty Rogue Special Mode None Game No. 13 Rogue 13 Adventurer 0 Explorer 0 Win Type - Total 0 Types 0/0/0/0/0/0/0/0/0 Lore% 2 Gallery% 13 Achievement% 9 Wizard Run 0 Options --------- Layout 0 ASCII 0 Keyboard 0 Movement Mouse Keybinds 0 Fullscreen 1 Font 36/Smallcaps Map View 76x50 Zoom Use 0% Tactical HUD 0 Map Filters NONE Filters NONE Steam 1 RUN: ecebeee4-db8a-493b-92f8-b70cf1879d82